fUSD/lending_fUSD_20240203
["ID","MTS","AMOUNT","RATE_DAILY","PERIOD"]
[313223280,1706967141701,3200.29032374,0.00021784,2]
[313223281,1706967145020,500.0,0.00021886,2]
[313223282,1706967146286,362.29204181,0.00021886,2]
[313223283,1706967146501,8658.78,0.00021918,2]
[313223284,1706967146926,155.0,0.00021886,2]
[313223285,1706967150715,474.74600763,0.00022011,2]
[313223286,1706967152193,209.95856334,0.00020196,2]
[313223287,1706967152622,776.98192691,0.00021784,2]
[313223288,1706967153227,19030.07079282,0.00021886,2]
[313223289,1706967153721,402.25139041,0.00021,2]
[313223290,1706967154772,294.4833,0.00022442,2]
[313223291,1706967156355,534.95751023,0.00021886,2]
[313223292,1706967157938,1101.27007292,0.00021886,2]
[313223293,1706967158986,6255.47,0.00021846,2]
[313223294,1706967159364,500.0,0.00021886,2]
[313223295,1706967159793,3200.29032374,0.00021784,2]
[313223296,1706967160281,362.29204181,0.00021886,2]
[313223297,1706967161955,279.85,0.00021846,2]
[313223298,1706967166913,216.10544186,0.00021886,2]
[313223299,1706967169222,19030.07079282,0.00021886,2]
[313223300,1706967169560,4502.52,0.00021818,2]
[313223301,1706967171471,1959.75,0.00021829,2]
[313223302,1706967173851,1101.27007292,0.00021886,2]
[313223303,1706967174372,532.22276477,0.00021886,2]
[313223304,1706967175703,3200.29032374,0.00021784,2]
[313223305,1706967178411,267.66635624,0.00021886,2]
[313223306,1706967180724,150.0,0.00021813,2]
[313223307,1706967181066,500.0,0.00021886,2]
[313223308,1706967185039,201.92,0.00021829,2]
[313223309,1706967185234,5318.32974651,0.00021886,2]
[313223310,1706967187386,192.52,0.00017463,2]
[313223311,1706967191850,276.25977715,0.00021886,2]
[313223312,1706967193702,3200.29032374,0.00021784,2]
[313223313,1706967213442,467.25,0.00021813,2]
[313223314,1706967215705,3200.29032374,0.00021659,2]
[313223315,1706967228597,1368.01722882,0.00022499,2]
[313223316,1706967229086,525.19,0.0002183,2]
[313223317,1706967229601,1280.08,0.00021988,2]
[313223318,1706967233277,250.0,0.00021918,2]
[313223319,1706967236659,200.0,0.00021824,2]
[313223320,1706967237036,2605.00055755,0.00022499,2]
[313223321,1706967239805,3200.29032374,0.00021659,2]
[313223322,1706967241645,224.0440687,0.00022403,2]
[313223323,1706967247734,224.04406869,0.00022464,2]
[313223324,1706967257713,3200.29032374,0.00021659,2]
[313223325,1706967261359,200.0,0.0002181,2]
[313223326,1706967266578,1500.11,0.00019884,2]
[313223327,1706967266832,1500.11,0.00022148,2]
[313223328,1706967275750,3200.29032374,0.00021659,2]
[313223329,1706967295719,197.46197504,0.00021659,2]
[313223330,1706967306773,1000.0,0.00021788,2]
[313223331,1706967310261,1273.34,0.00021802,2]
[313223332,1706967313548,2605.00055755,0.00022499,2]
[313223333,1706967315028,750.0,0.00021802,2]
[313223334,1706967319086,200.0,0.00021802,2]
[313223335,1706967320794,500.0,0.00021802,2]
[313223336,1706967334406,865.75203273,0.000224,2]
[313223337,1706967337681,1273.77,0.00021802,2]
[313223338,1706967360926,3003.21,0.00021806,2]
[313223339,1706967361641,1368.01722882,0.00022499,2]
[313223340,1706967394233,777.75,0.00021782,2]
[313223341,1706967419235,23900.0,0.00021782,2]
[313223342,1706967453464,2705.0,0.00021768,2]
[313223343,1706967453853,2389.5,0.00021768,2]
[313223344,1706967456895,1852.42,0.00021768,2]
[313223345,1706967459676,3935.22,0.00021768,2]
[313223346,1706967486982,2251.87,0.00021943,2]
[313223347,1706967492471,1023.92,0.00021782,2]
[313223348,1706967499727,222.58,0.00021782,2]
[313223349,1706967513985,166.93,0.00021782,2]
[313223350,1706967522699,7973.04,0.00021918,2]
[313223351,1706967532443,13721.09,0.00021782,2]
[313223352,1706967537166,2000.0,0.00021782,2]
[313223353,1706967561590,152.08,0.00021945,2]
[313223354,1706967561793,152.08,0.00022027,2]
[313223355,1706967562030,152.08,0.00022109,2]
[313223356,1706967562224,152.08,0.0002219,2]
[313223357,1706967562442,152.08,0.00022272,2]
[313223358,1706967562700,152.08,0.00022354,2]
[313223359,1706967562920,152.08,0.00022435,2]
[313223360,1706967589571,244.37,0.00021939,2]
[313223361,1706967638738,200.0,0.0002179,2]
[313223362,1706967639404,250.0,0.0002179,2]
[313223363,1706967671034,11973.9126,0.00022432,2]
[313223364,1706967680336,250.0,0.00021918,2]
[313223365,1706967715072,2169.59594434,0.000225,2]
[313223366,1706967734589,200.0,0.00021793,2]
[313223367,1706967752577,750.0,0.00021777,2]
[313223368,1706967753721,500.0,0.00021777,2]
[313223369,1706967754755,200.0,0.00021777,2]
[313223370,1706967764998,222.98,0.00021777,2]
[313223371,1706967779891,1501.6,0.00021777,2]
[313223372,1706967780848,200.0,0.00021777,2]
[313223373,1706967792084,1350.09,0.00019875,2]
[313223374,1706967792172,1000.0,0.00022,2]
[313223375,1706967792306,1350.09,0.00022139,2]
[313223376,1706967809475,200.0,0.00021777,2]
[313223377,1706967839830,662.09522237,0.00022432,2]
[313223378,1706967854846,23900.0,0.00021785,2]
[313223379,1706967894884,2250.0,0.00022,3]
[313223380,1706967972093,1852.42,0.00021803,2]
[313223381,1706967989400,2000.0,0.00021785,2]
[313223382,1706967994134,2705.0,0.00021785,2]
[313223383,1706968030672,222.58,0.00021803,2]
[313223384,1706968068941,152.08,0.00021949,2]
[313223385,1706968069157,152.08,0.00022112,2]
[313223386,1706968069377,152.08,0.00022275,2]
[313223387,1706968069601,152.08,0.00022439,2]
[313223388,1706968073422,2975.6916,0.00022432,2]
[313223389,1706968092758,250.0,0.00021852,2]
[313223390,1706968097516,250.0,0.00021918,2]
[313223391,1706968178768,200.0,0.00021852,2]
[313223392,1706968195780,420.15,0.00021852,2]
[313223393,1706968195854,750.8,0.00021852,2]
[313223394,1706968213653,1215.08,0.00019935,2]
[313223395,1706968213868,1215.08,0.00022199,2]
[313223396,1706968217926,840.0,0.00021853,2]
[313223397,1706968219950,500.0,0.00021853,2]
[313223416,1706968231991,-375.03299324,0.0002251,2]
[313223418,1706968232001,-15.51000676,0.00022511,2]
[313223422,1706968232048,-386.38142619,0.00022511,2]
[313223423,1706968232057,-51.90807381,0.00022532,2]
[313223425,1706968232099,-571.30269636,0.00022532,2]
[313223426,1706968232110,-707.52766815,0.00022532,2]
[313223427,1706968232121,-12069.46167223,0.00022532,2]
[313223428,1706968232154,-9286.79005059,0.00022532,2]
[313223429,1706968232167,-3713.71933151,0.00022533,2]
[313223430,1706968232177,-801.47089972,0.00022533,2]
[313223431,1706968232189,-277.14430329,0.00022533,2]
[313223432,1706968232211,-1383.19849212,0.00022533,2]
[313223433,1706968232221,-215.89487942,0.00022564,2]
[313223434,1706968232230,-1259.83989749,0.00022564,2]
[313223435,1706968232239,-59303.04384643,0.00022593,2]
[313223436,1706968232251,-450.0,0.00022593,2]
[313223764,1706968243035,-1537.36858344,0.00022593,2]
[313223779,1706968245997,-3124.8966353,0.00022593,2]
[313223780,1706968246105,-4342.75583816,0.00022593,2]
[313223781,1706968247705,-23965.03719667,0.00022593,2]
[313223782,1706968247714,-1860.52,0.00022599,2]
[313223783,1706968247725,-152.08,0.00022602,2]
[313223784,1706968247735,-1000.0,0.00022652,2]
[313223785,1706968247744,-3409.89,0.00022652,2]
[313223786,1706968247754,-1814.1657,0.00022652,2]
[313223787,1706968247764,-123174.4225,0.00022693,2]
[313223788,1706968247774,-251.9871,0.00022693,2]
[313223789,1706968247784,-499.99,0.00022693,2]
[313223790,1706968247793,-3048.13565396,0.00022693,5]
[313223791,1706968247802,-500.0,0.00022695,2]
[313223792,1706968247812,-354.2659,0.00022695,2]
[313223793,1706968247821,-284.7391,0.00022695,2]
[313223794,1706968247833,-4647.9778,0.00022695,2]
[313223795,1706968247843,-15530.1621,0.00022695,2]
[313223796,1706968247853,-1000.0,0.00022695,2]
[313223797,1706968247863,-800.0,0.00022704,2]
[313223798,1706968247873,-188.47457395,0.00022744,2]
[313223799,1706968247882,-495.73587168,0.00022752,2]
[313223800,1706968247892,-152.08,0.00022766,2]
[313223801,1706968247901,-526.44454516,0.00022791,2]
[313223802,1706968247913,-203.99838507,0.00022791,2]
[313223803,1706968247922,-168.13870654,0.00022791,2]
[313223804,1706968247931,-500.0,0.00022792,2]
[313223805,1706968247941,-267.13469851,0.00022792,2]
[313223806,1706968247950,-500.0,0.00022792,2]
[313223807,1706968247960,-500.0,0.00022792,2]
[313223808,1706968247969,-631.52,0.00022792,2]
[313223809,1706968247978,-400.56556836,0.00022793,2]
[313223810,1706968247988,-1408.12720319,0.00022793,2]
[313223811,1706968247998,-69173.30779594,0.00022793,2]
[313223812,1706968248007,-4500.57991331,0.00022793,2]
[313223813,1706968248017,-489.41507323,0.00022795,2]
[313223814,1706968248026,-288.00918675,0.00022795,9]
[313223815,1706968248036,-500.0,0.00022795,2]
[313223816,1706968248045,-496.77130862,0.00022795,2]
[313223817,1706968248054,-500.0,0.00022795,2]
[313223818,1706968248064,-7803.42036211,0.00022799,2]
[313223819,1706968248073,-763.55281153,0.00022799,2]
[313223820,1706968248082,-764.23,0.00022799,2]
[313223821,1706968248091,-500.0,0.00022799,2]
[313223822,1706968248101,-165.28716272,0.00022799,2]
[313223823,1706968248111,-486075.0,0.000228,2]
[313223824,1706968248120,-275.8930555,0.000228,2]
[313223825,1706968248129,-535.52419638,0.000228,2]
[313223826,1706968248138,-252.47,0.000229,2]
[313223827,1706968248148,-152.08,0.00022929,2]
[313223828,1706968248157,-420.15,0.00022945,2]
[313223829,1706968248166,-244.00871752,0.00022982,2]
[313223830,1706968248175,-474.62406618,0.00022982,2]
[313223831,1706968248185,-249.52928063,0.00022982,2]
[313223832,1706968248194,-943.47879159,0.00022982,2]
[313223833,1706968248203,-500.0,0.00023066,2]
[313223834,1706968248213,-500.0,0.00023066,2]
[313223835,1706968248222,-500.0,0.00023066,2]
[313223836,1706968248231,-631.52,0.00023066,2]
[313223837,1706968248240,-553.44942876,0.00023069,2]
[313223838,1706968248250,-500.0,0.00023069,2]
[313223839,1706968248259,-764.23,0.00023073,2]
[313223840,1706968248268,-152.08,0.00023092,2]
[313223841,1706968248278,-300.0,0.00023155,2]
[313223842,1706968248287,-500.0,0.0002334,2]
[313223843,1706968248295,-500.0,0.0002334,2]
[313223844,1706968248304,-500.0,0.0002334,2]
[313223845,1706968248314,-631.52,0.0002334,2]
[313223846,1706968248323,-500.0,0.00023343,2]
[313223847,1706968248332,-732.79,0.00023343,2]
[313223848,1706968248342,-764.23,0.00023347,2]
[313223849,1706968248351,-509.10091109,0.00023614,2]
[313223850,1706968248360,-500.0,0.00023614,2]
[313223851,1706968248370,-500.0,0.00023614,2]
[313223852,1706968248380,-631.52,0.00023614,2]
[313223853,1706968248389,-500.0,0.00023617,2]
[313223854,1706968248398,-764.23,0.00023621,2]
[313223855,1706968248407,-500.0,0.00023888,2]
[313223856,1706968248416,-500.0,0.00023888,2]
[313223857,1706968248426,-631.52,0.00023888,2]
[313223858,1706968248444,-500.0,0.00023891,2]
[313223859,1706968248455,-764.23,0.00023895,2]
[313223860,1706968248465,-387.35895658,0.00024,2]
[313223861,1706968248475,-2300.0,0.00024,3]
[313223862,1706968248484,-444.04274518,0.00024,2]
[313223863,1706968248494,-420.15,0.00024037,2]
[313223864,1706968248503,-500.0,0.00024162,2]
[313223865,1706968248513,-500.0,0.00024162,2]
[313223866,1706968248522,-631.52,0.00024162,2]
[313223867,1706968248532,-215.22213038,0.00024164,2]
[313223868,1706968248541,-500.0,0.00024165,2]
[313223869,1706968248550,-764.23,0.00024169,2]
[313223870,1706968248559,-167.0,0.00024297,2]
[313223871,1706968248569,-9288.38,0.00024384,2]
[313223872,1706968248578,-9067.05,0.00024384,2]
[313223873,1706968248587,-500.0,0.00024436,2]
[313223874,1706968248597,-631.52,0.00024436,2]
[313223875,1706968248606,-500.0,0.00024439,2]
[313223876,1706968248616,-764.23,0.00024443,2]
[313223877,1706968248626,-1215.08,0.00024463,2]
[313223878,1706968248635,-200.0,0.00024499,2]
[313223879,1706968248645,-300.0,0.00024525,2]
[313223880,1706968248654,-840.0,0.00024585,2]
[313223881,1706968248664,-2500.0,0.00024658,3]
[313223882,1706968248673,-250.0,0.00024658,2]
[313223883,1706968248682,-500.0,0.0002471,2]
[313223884,1706968248692,-631.52,0.0002471,2]
[313223885,1706968248701,-500.0,0.00024713,2]
[313223886,1706968248711,-764.23,0.00024717,2]
[313223887,1706968248720,-1075.35,0.0002498,2]
[313223888,1706968248730,-500.0,0.00024984,2]
[313223889,1706968248740,-631.52,0.00024984,2]
[313223890,1706968248750,-500.0,0.00024987,2]
[313223891,1706968248759,-764.23,0.00024991,2]
[313223892,1706968248769,-1589.2290575,0.00025,2]
[313223893,1706968248779,-557.61751067,0.00025,2]
[313223894,1706968248788,-167.96342031,0.00025,2]
[313223895,1706968248798,-1798.02731092,0.00025,2]
[313223896,1706968248807,-202.73608472,0.00025,2]
[313223897,1706968248817,-4456.10995895,0.00025,2]
[313223898,1706968248826,-159.2692348,0.00025,2]
[313223899,1706968248838,-536.02669955,0.00025,2]
[313223900,1706968248848,-304.55413584,0.00025,2]
[313223901,1706968248859,-1906.13148875,0.00025,2]
[313223902,1706968248868,-167.0,0.00025099,2]
[313223903,1706968248878,-420.15,0.0002513,2]
[313223904,1706968248888,-500.0,0.00025258,2]
[313223905,1706968248898,-631.52,0.00025258,2]
[313223906,1706968248907,-500.0,0.00025261,2]
[313223907,1706968248919,-764.23,0.00025265,2]
[313223908,1706968248929,-151.05205636,0.0002535,2]
[313223909,1706968248938,-1363.0,0.00025442,2]
[313223910,1706968248948,-2457.158,0.00025442,2]
[313223911,1706968248958,-1861.0,0.00025442,2]
[313223912,1706968248967,-949.0,0.00025442,2]
[313223913,1706968248976,-215.0,0.00025442,2]
[313223914,1706968248985,-1250.0,0.00025442,2]
[313223915,1706968248995,-324.16,0.00025442,2]
[313223916,1706968249005,-428.0,0.00025442,2]
[313223917,1706968249014,-236.0,0.00025442,2]
[313223918,1706968249024,-318.781,0.00025442,2]
[313223919,1706968249033,-150.0,0.00025442,2]
[313223920,1706968249043,-5602.0,0.00025442,2]
[313223921,1706968249054,-4192.0,0.00025442,2]
[313223922,1706968249063,-19773.0,0.00025442,2]
[313223923,1706968249073,-500.0,0.00025532,2]
[313223924,1706968249082,-631.52,0.00025532,2]
[313223925,1706968249092,-500.0,0.00025535,2]
[313223926,1706968249101,-764.23,0.00025539,2]
[313223927,1706968249111,-500.0,0.00025806,2]
[313223928,1706968249121,-631.52,0.00025806,2]
[313223929,1706968249130,-500.0,0.00025809,2]
[313223930,1706968249140,-764.23,0.00025813,2]
[313223931,1706968249149,-167.0,0.00025901,2]
[313223932,1706968249159,-2350.0,0.00026,3]
[313223933,1706968249169,-150.0,0.00026079,2]
[313223934,1706968249179,-500.0,0.0002608,2]
[313223935,1706968249189,-500.0,0.00026083,2]
[313223936,1706968249199,-764.23,0.00026087,2]
[313223937,1706968249208,-420.15,0.00026222,2]
[313223938,1706968249218,-867.08949321,0.00026338,3]
[313223939,1706968249228,-500.0,0.00026354,2]
[313223940,1706968249237,-500.0,0.00026356,2]
[313223941,1706968249246,-764.23,0.00026361,2]
[313223942,1706968249255,-500.0,0.00026628,2]
[313223943,1706968249264,-500.0,0.0002663,2]
[313223944,1706968249274,-764.23,0.00026635,2]
[313223945,1706968249283,-167.0,0.00026703,2]
[313223946,1706968249293,-11499.96547405,0.00026707,3]
[313223947,1706968249304,-1975.21772456,0.00026707,3]
[313223948,1706968249313,-197.52177246,0.00026707,3]
[313223949,1706968249323,-5210.9385744,0.00026707,3]
[313223950,1706968249335,-260.54692872,0.00026707,3]
[313223951,1706968249344,-260.54692872,0.00026707,3]
[313223952,1706968249354,-2333.22630906,0.00026707,3]
[313223953,1706968249363,-5817.47617434,0.00026707,3]
[313223954,1706968249373,-1215.08,0.00026727,2]
[313223955,1706968249384,-500.0,0.00026855,2]
[313223956,1706968249393,-500.0,0.00026902,2]
[313223957,1706968249404,-594.99577652,0.00026904,2]
[313223958,1706968249414,-764.23,0.00026909,2]
[313223959,1706968249424,-378.9339,0.00027,2]
[313223960,1706968249434,-500.0,0.000271,2]
[313223961,1706968249444,-453.57,0.00027176,2]
[313223962,1706968249455,-764.23,0.00027183,2]
[313223963,1706968249465,-200.0,0.00027221,2]
[313223964,1706968249476,-159.07478848,0.00027289,2]
[313223965,1706968249486,-840.0,0.00027316,2]
[313223966,1706968249496,-155.0,0.00027397,2]
[313223967,1706968249506,-530.0,0.00027397,2]
[313223968,1706968249516,-421.56863326,0.00027422,2]
[313223969,1706968249525,-764.23,0.00027456,2]
[313223970,1706968249534,-151.05205636,0.0002747,2]
[313223971,1706968249544,-167.0,0.00027505,2]
[313223972,1706968249553,-159.07478848,0.0002757,2]
[313223973,1706968249564,-764.23,0.0002773,2]
[313223974,1706968249574,-159.07478848,0.00027956,2]
[313223975,1706968249583,-691.4404306,0.00028,2]
[313223976,1706968249592,-119358.53460271,0.00028,2]
[313223977,1706968249602,-2400.0,0.00028,3]
[313223978,1706968249612,-200.0,0.00028,2]
[313223979,1706968249623,-764.23,0.00028004,2]
[313223980,1706968249632,-159.07478848,0.00028028,2]
[313223981,1706968249642,-421.56863326,0.00028227,2]
[313223982,1706968249651,-764.23,0.00028278,2]
[313223983,1706968249661,-167.0,0.00028307,2]
[313223984,1706968249671,-215.0,0.00028442,2]
[313223985,1706968249681,-430.878,0.00028442,2]
[313223986,1706968249690,-426.0,0.00028442,2]
[313223987,1706968249701,-150.0,0.00028442,2]
[313223988,1706968249868,-764.23,0.00028552,2]
[313223989,1706968249879,-159.07478848,0.00028603,2]
[313223990,1706968249889,-153.82890557,0.00028622,2]
[313223991,1706968249900,-323.9802365,0.00028629,2]
[313223992,1706968249911,-155.0,0.00028767,2]
[313223993,1706968249922,-535.52419634,0.00028825,2]
[313223994,1706968249932,-764.23,0.00028826,2]
[313223995,1706968249941,-1215.08,0.00028991,2]
[313223996,1706968249951,-421.56863326,0.00029032,2]
[313223997,1706968249961,-717.47,0.00029089,2]
[313223998,1706968249971,-764.27140452,0.000291,2]
[313223999,1706968249981,-390.91782437,0.00029284,7]
[313224000,1706968249991,-75000.0,0.00029342,3]
[313224001,1706968250001,-365.95717832,0.000295,2]
[313224002,1706968250011,-155.0,0.000295,3]
[313224003,1706968250020,-151.05205636,0.00029767,2]
[313224004,1706968250030,-151.05205636,0.00029767,2]
[313224005,1706968250039,-176.11064698,0.000298,2]
[313224006,1706968250048,-421.56863326,0.00029837,2]
[313224007,1706968250058,-500.0,0.000299,2]
[313224008,1706968250067,-2000.0,0.000299,3]
[313224009,1706968250077,-867.08949321,0.00029931,4]
[313224010,1706968250086,-200.0,0.00029943,2]
[313224011,1706968250096,-1813.3582863,0.0003,4]
[313224012,1706968250105,-155.0,0.0003,4]
[313224013,1706968250115,-13819.95398378,0.0003,2]
[313224014,1706968250124,-909.10790134,0.0003,4]
[313224015,1706968250134,-256.34219574,0.0003,4]
[313224016,1706968250143,-270.84639382,0.0003,4]
[313224017,1706968250153,-155.0,0.0003,2]
[313224018,1706968250163,-190.33482218,0.0003,4]
[313224019,1706968250173,-155.0,0.0003,4]
[313224020,1706968250183,-817.55928585,0.0003,4]
[313224021,1706968250193,-2673.72396151,0.0003,4]
[313224022,1706968250202,-156.85954294,0.0003,4]
[313224023,1706968250212,-19104.02955451,0.0003,4]
[313224024,1706968250222,-151.68,0.0003,7]
[313224025,1706968250231,-694.45056463,0.0003,2]
[313224026,1706968250241,-835.44169672,0.0003,2]
[313224027,1706968250251,-8876.15774637,0.0003,4]
[313224028,1706968250261,-359.27275681,0.0003,2]
[313224029,1706968250271,-152.59,0.0003,2]
[313224030,1706968250281,-2450.0,0.0003,3]
[313224031,1706968250290,-200.0,0.0003,2]
[313224032,1706968250298,-500.0,0.0003,2]
[313224033,1706968250307,-840.0,0.00030048,2]
[313224034,1706968250316,-381.16720121,0.00030136,4]
[313224035,1706968250325,-3496.77648228,0.00030136,4]
[313224036,1706968250334,-686.51235916,0.00030136,4]
[313224037,1706968250342,-283.13406969,0.00030136,4]
[313224038,1706968250352,-212.57470405,0.00030136,4]
[313224039,1706968250362,-5862.35358759,0.00030136,4]
[313224040,1706968250371,-155.0,0.00030136,4]
[313224041,1706968250382,-1583.0651044,0.00030136,4]
[313224042,1706968250392,-5636.51327,0.00030136,2]
[313224043,1706968250402,-2815.01449011,0.00030136,2]
[313224044,1706968250412,-150.0,0.00030137,2]
[313224045,1706968250421,-750.8,0.00030593,2]
[313224046,1706968250431,-377.33036621,0.00030613,2]
[313224047,1706968250441,-421.56863326,0.00030642,2]
[313224048,1706968250450,-1149.9965474,0.00030713,7]
[313224049,1706968250461,-521.09385743,0.00030713,7]
[313224050,1706968250471,-446.55048977,0.00030713,7]
[313224051,1706968250481,-581.74761743,0.00030713,7]
[313224052,1706968250492,-150.0,0.00030714,2]
[313224053,1706968250502,-235.89308219,0.000308,2]
[313224054,1706968250512,-257.4045138,0.00031,4]
[313224055,1706968250523,-3432.62216155,0.00031,5]
[313224056,1706968250533,-176.88,0.00031,2]
[313224057,1706968250543,-3739.115385,0.00031,2]
[313224058,1706968250555,-463.89284492,0.00031,2]
[313224059,1706968250566,-279.69091136,0.00031,2]
[313224060,1706968250577,-500.0,0.00031007,2]
[313224061,1706968250587,-591.0,0.00031157,5]
[313224062,1706968250598,-1215.08,0.00031255,2]
[313224063,1706968250608,-150.0,0.00031291,2]
[313224064,1706968250619,-421.56863326,0.00031447,2]
[313224065,1706968250630,-7644.6555177,0.000315,3]
[313224066,1706968250639,-176.88,0.00031548,2]
[313224067,1706968250650,-180.0,0.00031644,2]
[313224068,1706968250660,-500.0,0.000317,2]
[313224069,1706968250671,-500.0,0.000317,2]
[313224070,1706968250681,-500.0,0.000317,2]
[313224071,1706968250691,-2738.6322,0.000317,2]
[313224072,1706968250701,-350.0,0.000317,2]
[313224073,1706968250713,-500.0,0.000317,2]
[313224074,1706968250723,-500.0,0.000317,2]
[313224075,1706968250733,-500.0,0.000317,2]
[313224076,1706968250743,-500.0,0.000317,2]
[313224077,1706968250754,-500.0,0.000317,2]
[313224078,1706968250765,-500.0,0.000317,2]
[313224079,1706968250776,-500.0,0.000317,2]
[313224080,1706968250786,-500.0,0.000317,2]
[313224081,1706968250797,-500.0,0.000317,2]
[313224082,1706968250807,-500.0,0.000317,2]
[313224083,1706968250817,-500.0,0.000317,2]
[313224084,1706968250828,-500.0,0.000317,2]
[313224085,1706968250843,-500.0,0.000317,2]
[313224086,1706968250853,-500.0,0.000317,2]
[313224087,1706968250863,-500.0,0.000317,2]
[313224088,1706968250874,-500.0,0.000317,2]
[313224089,1706968250884,-500.0,0.000317,2]
[313224090,1706968250895,-500.0,0.000317,2]
[313224091,1706968250905,-500.0,0.000317,2]
[313224092,1706968250916,-500.0,0.000317,2]
[313224093,1706968250926,-500.0,0.000317,2]
[313224094,1706968250937,-500.0,0.000317,2]
[313224095,1706968250948,-500.0,0.000317,2]
[313224096,1706968250958,-500.0,0.000317,2]
[313224097,1706968250974,-500.0,0.000317,2]
[313224098,1706968250985,-500.0,0.000317,2]
[313224099,1706968250995,-500.0,0.000317,2]
[313224100,1706968251004,-150.0,0.000317,2]
[313224101,1706968251016,-500.0,0.000317,2]
[313224102,1706968251026,-500.0,0.000317,2]
[313224103,1706968251036,-500.0,0.000317,2]
[313224104,1706968251046,-500.0,0.000317,2]
[313224105,1706968251058,-500.0,0.000317,2]
[313224106,1706968251068,-500.0,0.000317,2]
[313224107,1706968251080,-500.0,0.000317,2]
[313224108,1706968251092,-500.0,0.000317,2]
[313224109,1706968251102,-500.0,0.000317,2]
[313224110,1706968251112,-500.0,0.000317,2]
[313224111,1706968251123,-500.0,0.000317,2]
[313224112,1706968251133,-500.0,0.000317,2]
[313224113,1706968251143,-500.0,0.000317,2]
[313224114,1706968251152,-500.0,0.000317,2]
[313224115,1706968251162,-500.0,0.000317,2]
[313224116,1706968251171,-500.0,0.000317,2]
[313224117,1706968251181,-500.0,0.000317,2]
[313224118,1706968251191,-500.0,0.000317,2]
[313224119,1706968251201,-500.0,0.000317,2]
[313224120,1706968251217,-500.0,0.000317,2]
[313224121,1706968251227,-500.0,0.000317,2]
[313224122,1706968251237,-500.0,0.000317,2]
[313224123,1706968251246,-500.0,0.000317,2]
[313224124,1706968251256,-500.0,0.000317,2]
[313224125,1706968251266,-500.0,0.000317,2]
[313224126,1706968251276,-350.0,0.000317,2]
[313224127,1706968251285,-500.0,0.000317,2]
[313224128,1706968251294,-500.0,0.000317,2]
[313224129,1706968251304,-500.0,0.000317,2]
[313224130,1706968251314,-500.0,0.000317,2]
[313224131,1706968251323,-500.0,0.000317,2]
[313224132,1706968251332,-500.0,0.000317,2]
[313224133,1706968251342,-500.0,0.000317,2]
[313224134,1706968251352,-500.0,0.000317,2]
[313224135,1706968251360,-500.0,0.000317,2]
[313224136,1706968251370,-500.0,0.000317,2]
[313224137,1706968251380,-500.0,0.000317,2]
[313224138,1706968251389,-500.0,0.000317,2]
[313224139,1706968251398,-500.0,0.000317,2]
[313224140,1706968251407,-500.0,0.000317,2]
[313224141,1706968251416,-500.0,0.000317,2]
[313224142,1706968251426,-500.0,0.000317,2]
[313224143,1706968251436,-500.0,0.000317,2]